lending/lending_fUSD_20240504
["ID","MTS","AMOUNT","RATE_DAILY","PERIOD"]
[325379785,1714792120460,-5.0,8.79e-05,2]
[325379786,1714792120483,-145.0,8.79e-05,2]
[325379806,1714792232486,-10.0,8.79e-05,2]
[325379807,1714792232495,-25.66,8.791e-05,2]
[325379808,1714792232505,-684.94154933,9.889e-05,2]
[325379809,1714792232514,-56.00867098,9.89e-05,2]
[325379810,1714792232526,-381.63774662,9.89e-05,2]
[325379811,1714792232854,-322.91174239,9.89e-05,2]
[325379812,1714792232867,-3657.92082889,9.89e-05,2]
[325379813,1714792232876,-35296.28241539,9.89e-05,2]
[325379814,1714792232885,-600.0,9.891e-05,2]
[325379815,1714792232894,-5264.73132234,9.891e-05,2]
[325379816,1714792232904,-2941.72411728,9.893e-05,2]
[325379817,1714792232913,-427.65535972,0.00010013,2]
[325379818,1714792232923,-168.5678123,0.00010014,2]
[325379819,1714792232933,-1471.23,0.00010965,2]
[325379820,1714792232942,-23900.0,0.00010991,2]
[325379821,1714792232951,-301.29316089,0.00011,2]
[325379822,1714792232960,-150.99,0.00011,2]
[325379823,1714792232971,-1844.1,0.00011,2]
[325379824,1714792232981,-200.01,0.0001101,2]
[325379825,1714792232990,-200.0,0.00011024,2]
[325379826,1714792233000,-250.0,0.00011033,2]
[325379827,1714792233009,-1025.28,0.00011048,2]
[325379828,1714792233020,-999.99,0.00011048,2]
[325379829,1714792233029,-221.94,0.00011048,2]
[325379830,1714792233038,-500.0,0.00011118,2]
[325379831,1714792233049,-250.0,0.00011173,2]
[325379832,1714792233059,-152.86,0.00011783,2]
[325379833,1714792233068,-499.99,0.00011789,2]
[325379834,1714792233077,-314.73,0.00011789,2]
[325379835,1714792233086,-152.86,0.00011789,2]
[325379836,1714792233095,-152.86,0.00011795,2]
[325379837,1714792233105,-152.86,0.00011801,2]
[325379838,1714792233115,-152.86,0.00011807,2]
[325379839,1714792233129,-152.86,0.00011813,2]
[325379840,1714792233138,-151.9,0.00011817,2]
[325379841,1714792233147,-152.86,0.00011819,2]
[325379842,1714792233157,-152.86,0.00011825,2]
[325379843,1714792233166,-152.86,0.0001183,2]
[325379844,1714792233175,-152.86,0.00011836,2]
[325379845,1714792233184,-152.86,0.00011842,2]
[325379846,1714792233194,-920.36,0.00011872,2]
[325379847,1714792233203,-172.59,0.0001195,2]
[325379848,1714792233212,-155.0,0.00012155,2]
[325379849,1714792233222,-3168.41548277,0.00012156,2]
[325379850,1714792233231,-1192.02204108,0.00012156,2]
[325379851,1714792233241,-200.01,0.00012386,2]
[325379852,1714792233250,-155.0,0.000125,2]
[325379853,1714792233259,-12627.1281049,0.00012669,2]
[325379854,1714792233269,-2787.25187857,0.0001267,2]
[325379855,1714792233279,-333.97745488,0.00012698,2]
[325379856,1714792233288,-1000.0,0.00012698,2]
[325379857,1714792233298,-500.0,0.00012698,2]
[325379858,1714792233306,-184.9644,0.00012698,2]
[325379859,1714792233315,-906.5228,0.00012705,2]
[325379860,1714792233325,-1646.39508633,0.0001279,2]
[325379861,1714792233334,-309.96706534,0.00012796,2]
[325379862,1714792233343,-180.26818678,0.00012796,2]
[325379863,1714792233352,-806.68662647,0.00012796,2]
[325379864,1714792233362,-266.64253667,0.00012796,2]
[325379865,1714792233371,-204.71183152,0.00012796,2]
[325379866,1714792233380,-5573.57114455,0.00012796,2]
[325379867,1714792233389,-155.0,0.00012796,2]
[325379868,1714792233398,-155.41029886,0.00012796,2]
[325379869,1714792233408,-155.23244113,0.00012796,2]
[325379870,1714792233416,-202.56406343,0.00012797,2]
[325379871,1714792233426,-789.50955761,0.00012797,2]
[325379872,1714792233435,-781.96889708,0.00012798,2]
[325379873,1714792233445,-290.251706,0.00012798,2]
[325379874,1714792233454,-324.85013726,0.00012798,2]
[325379875,1714792233464,-208.82049638,0.00012798,2]
[325379876,1714792233474,-312144.65749314,0.00012798,2]
[325379877,1714792233483,-317.71947076,0.00012798,2]
[325379878,1714792233492,-208.32480131,0.00012798,2]
[325379879,1714792233502,-174.9177564,0.00012798,2]
[325379880,1714792233511,-302.06748487,0.00012798,2]
[325379881,1714792233522,-155.11000359,0.00012798,2]
[325379882,1714792233531,-237.34034179,0.00012798,2]
[325379883,1714792233540,-155.20784223,0.00012798,2]
[325379884,1714792233550,-259.09653929,0.00012798,2]
[325379885,1714792233559,-155.33465603,0.00012798,2]
[325379886,1714792233569,-197.18297177,0.00012798,2]
[325379887,1714792233578,-958.02798302,0.00012798,2]
[325379888,1714792233587,-204.70870887,0.00012798,2]
[325379889,1714792233597,-408.7311975,0.00012798,2]
[325379890,1714792233607,-452.78970243,0.00012798,2]
[325379891,1714792233616,-7951.3303818,0.00012799,2]
[325379892,1714792233626,-1301.96489797,0.00012799,3]
[325379893,1714792233635,-8774.49300453,0.000128,2]
[325379894,1714792233647,-75721.42019162,0.000128,2]
[325379901,1714792238419,-644.5655266,0.000128,2]
[325379904,1714792238431,-848.26710872,0.000128,2]
[325379905,1714792238442,-385.25436799,0.000128,2]
[325379908,1714792238454,-48540.60230054,0.000128,2]
[325379910,1714792238463,-215088.20983285,0.00012805,2]
[325379912,1714792238474,-219.86517757,0.00012815,2]
[325379914,1714792238483,-3000.0,0.0001287,2]
[325379916,1714792238493,-200.0,0.00012895,2]
[325379918,1714792238503,-200.0,0.00012896,2]
[325379920,1714792238513,-1000.0,0.00012896,2]
[325379922,1714792238522,-200.0,0.00012896,2]
[325379924,1714792238532,-500.0,0.00012896,2]
[325379926,1714792238542,-21273.12199562,0.000129,2]
[325379928,1714792238551,-257.39021498,0.000129,2]
[325379930,1714792238561,-206.01351814,0.000129,2]
[325379932,1714792238570,-860.2156088,0.0001299,2]
[325379934,1714792238580,-3855.4117478,0.0001299,2]
[325379936,1714792238589,-160.5727623,0.0001299,2]
[325379938,1714792238599,-2329.6647793,0.0001299,2]
[325379940,1714792238608,-4609.106212,0.0001299,2]
[325379942,1714792238618,-856.9672834,0.0001299,2]
[325379944,1714792238627,-824.8868881,0.0001299,2]
[325379946,1714792238637,-2210.9244308,0.0001299,2]
[325379948,1714792238646,-251.1916197,0.0001299,2]
[325379950,1714792238656,-3452.0483329,0.00012991,2]
[325379952,1714792238665,-3048.684918,0.00012991,2]
[325379953,1714792238675,-2085.9290638,0.00012991,2]
[325379954,1714792238684,-1842.1933483,0.00012991,2]
[325379955,1714792238694,-4126.8892809,0.00012991,2]
[325379956,1714792238703,-3644.6723498,0.00012991,2]
[325379957,1714792238713,-768.5865696,0.00012991,2]
[325379958,1714792238722,-680.2058559,0.00012991,2]
[325379959,1714792238731,-739.8146883,0.00012991,2]
[325379961,1714792238740,-654.7424885,0.00012991,2]
[325379963,1714792238750,-1982.9074656,0.00012991,2]
[325379965,1714792238760,-1754.8905004,0.00012991,2]
[325379967,1714792238769,-251.1916197,0.00012991,2]
[325379969,1714792238779,-251.1916197,0.00012991,2]
[325379971,1714792238789,-1466.36548278,0.00012999,2]
[325379973,1714792238799,-564.0,0.00013,2]
[325379975,1714792238808,-139593.30427304,0.00013,2]
[325379978,1714792238818,-397.10083861,0.00013,2]
[325379980,1714792238828,-2171344.60304814,0.00013,2]
[325379982,1714792238838,-548.39289392,0.00013,2]
[325379983,1714792238847,-117846.31336105,0.00013,2]
[325379985,1714792238858,-1000.0,0.00013,2]
[325379987,1714792238868,-2165273.93463332,0.00013,2]
[325379990,1714792238880,-80623.22158228,0.00013,2]
[325380041,1714792240583,-2560.0,0.00013,2]
[325380043,1714792240594,-4201.28824833,0.00013,2]
[325380045,1714792240606,-360.28544479,0.00013,2]
[325380048,1714792240618,-651.51645959,0.00013,2]
[325380104,1714792243389,-19211.18656797,0.00013,2]
[325380106,1714792243402,-616.47153745,0.00013,2]
[325380110,1714792243630,-794.35352758,0.00013,2]
[325380113,1714792246669,-2000.0,0.00012999,2]
[325380114,1714792246682,-1221.72,0.00012999,2]
[325380115,1714792246694,-456.80005735,0.00012999,2]
[325380116,1714792246706,-5754.0,0.00012999,2]
[325380117,1714792252833,150.0,7.032e-05,2]
[325380118,1714792252855,150.0,7.032e-05,2]
[325380119,1714792252877,0.64633936,7.032e-05,2]
[325380134,1714793432726,-155.0,9.863e-05,2]
[325380135,1714793432736,-157.43768443,9.864e-05,2]
[325380136,1714793432745,-467.10231581,9.89e-05,2]
[325380137,1714793432756,-1346.78709982,9.89e-05,2]
[325380138,1714793432768,-276.43988119,9.89e-05,2]
[325380139,1714793432904,-14270.51040318,9.89e-05,2]
[325380141,1714793432914,-548.39289392,0.0001,2]
[325380143,1714793432924,-162.50014884,0.0001,2]
[325380146,1714793432938,-427.65535972,0.0001,2]
[325380147,1714793432947,-250.0,0.00011842,2]
[325380150,1714793432957,-281.51,0.0001187,2]
[325380152,1714793432966,-6689.94,0.00011887,2]
[325380154,1714793432975,-365.48,0.0001191,2]
[325380155,1714793432984,-1000.0,0.00012068,2]
[325380158,1714793432994,-558.19,0.00012068,2]
[325380160,1714793433003,-531.94,0.000124,2]
[325380162,1714793433013,-300.4,0.000124,2]
[325380164,1714793433022,-427.05,0.000124,2]
[325380165,1714793433032,-302.15,0.000124,2]
[325380168,1714793433041,-357.09,0.000124,2]
[325380169,1714793433050,-151.03,0.000124,2]
[325380172,1714793433061,-301.08,0.000124,2]
[325380174,1714793433070,-165.86,0.000124,2]
[325380176,1714793433079,-12627.1281049,0.000125,2]
[325380178,1714793433088,-499.99,0.000125,2]
[325380180,1714793433099,-155.0,0.00012551,2]
[325380182,1714793433108,-152.14,0.00012552,2]
[325380183,1714793433120,-306.38,0.00012604,2]
[325380186,1714793433131,-1560.03868352,0.00012772,2]
[325380188,1714793433141,-369.86517757,0.0001287,2]
[325380189,1714793433150,-200.0,0.00012895,2]
[325380191,1714793433159,-1000.0,0.00012895,2]
[325380194,1714793433169,-200.0,0.00012896,2]
[325380196,1714793433178,-1000.0,0.00012896,2]
[325380198,1714793433187,-1000.0,0.00012896,2]
[325380200,1714793433198,-200.0,0.00012896,2]
[325380202,1714793433207,-500.0,0.00012896,2]
[325380204,1714793433216,-8247.4113,0.00012899,2]
[325380206,1714793433225,-1222.3659,0.00012899,2]
[325380208,1714793433235,-180.06086619,0.00012899,2]
[325380210,1714793433244,-333.97745488,0.00012899,2]
[325380212,1714793433254,-160.01396257,0.000129,2]
[325380214,1714793433263,-6508.66896871,0.000129,2]
[325380216,1714793433276,-674.33962781,0.000129,2]
[325380243,1714793438802,-2514.14874685,0.000129,2]
[325380244,1714793438814,-1753.89266644,0.000129,2]
[325380245,1714793438825,-4190.85538286,0.000129,2]
[325380246,1714793438837,-8603.34659516,0.000129,2]
[325380247,1714793438846,-172.55573534,0.000129,2]
[325380248,1714793438855,-5459.9117,0.000129,2]
[325380249,1714793438864,-161.43190838,0.000129,2]
[325380250,1714793438873,-1000.0,0.000129,2]
[325380251,1714793438882,-2093.22464376,0.000129,2]
[325380252,1714793438892,-664.5906,0.00012935,2]
[325380253,1714793438902,-3099.51644288,0.00012986,2]
[325380254,1714793438911,-1036.4994397,0.00012988,2]
[325380255,1714793438920,-206.108545,0.00012988,2]
[325380256,1714793438929,-708.1496703,0.00012988,2]
[325380257,1714793438938,-1235.0366094,0.00012988,2]
[325380258,1714793438948,-2982.224032,0.00012988,2]
[325380259,1714793438956,-13913.7126165,0.00012988,2]
[325380260,1714793438966,-155.39633957,0.0001299,2]
[325380261,1714793438975,-938.4847095,0.00012991,2]
[325380262,1714793438986,-206.108545,0.00012991,2]
[325380263,1714793438995,-639.9694287,0.00012991,2]
[325380264,1714793439004,-1121.03323,0.00012991,2]
[325380265,1714793439013,-2706.9418136,0.00012991,2]
[325380266,1714793439022,-12658.5474635,0.00012991,2]
[325380267,1714793439032,-348.7237974,0.00012997,2]
[325380268,1714793439042,-2488.1753865,0.00012998,2]
[325380269,1714793439051,-573.37567138,0.00012998,2]
[325380270,1714793439060,-155.74210518,0.00012998,2]
[325380271,1714793439069,-861.71106805,0.00012998,2]
[325380272,1714793439079,-316.86936095,0.00012998,2]
[325380273,1714793439088,-377.68474299,0.00012998,2]
[325380274,1714793439097,-386.50863812,0.00012999,2]
[325380275,1714793439108,-176.9253443,0.00012999,2]
[325380276,1714793439118,-22656.61873281,0.00012999,2]
[325380277,1714793439128,-179.354062,0.00012999,2]
[325380278,1714793439138,-299415.97845151,0.00012999,2]
[325380279,1714793439147,-5851.28126909,0.00012999,2]
[325380280,1714793439156,-408.97723606,0.00012999,2]
[325380281,1714793439166,-565.0,0.00013,2]
[325380282,1714793439176,-901148.49730507,0.00013,2]
[325380283,1714793439254,-2298.34491096,0.00013,2]
[325380284,1714793439265,-471.123024,0.00013,2]
[325380285,1714793439277,-1478.26174416,0.00013,2]
[325380286,1714793439289,-1749402.26038321,0.00013,2]
[325380287,1714793439299,-397.16117121,0.00013,2]
[325380288,1714793439310,-3000.0,0.00013,2]
[325380289,1714793439320,-150.0,0.00013014,2]
[325380290,1714793439329,-150.0,0.00013014,2]
[325380291,1714793439341,-150.0,0.00013014,2]
[325380292,1714793439354,-187.0,0.00013119,2]
[325380293,1714793439365,-478.82,0.00013151,2]
[325380294,1714793439375,-150.0,0.000132,2]
[325380295,1714793439386,-365.48,0.00013399,2]
[325380296,1714793439396,-308.53,0.00013425,2]
[325380297,1714793439406,-261.93,0.00013425,2]
[325380298,1714793439415,-1000.0,0.00013577,2]
[325380299,1714793439425,-200.0,0.00013699,2]
[325380300,1714793439436,-200.0,0.00013699,2]
[325380301,1714793439446,-200.0,0.00013699,2]
[325380302,1714793439455,-200.0,0.00013699,2]
[325380303,1714793439464,-500.0,0.00013699,2]
[325380304,1714793439475,-281.91054346,0.00014,2]
[325380305,1714793439484,-153.69,0.00014,2]
[325380306,1714793439494,-153.69,0.00014,2]
[325380307,1714793439504,-153.69,0.00014,2]
[325380308,1714793439514,-365.48,0.00014887,2]
[325380309,1714793439523,-1040.945855,0.00015,2]
[325380310,1714793439534,-1749.0834379,0.00015,2]
[325380311,1714793439544,-617.81945781,0.00015,2]
[325380312,1714793439553,-646.0,0.00015,2]
[325380313,1714793439563,-496.0,0.00015,2]
[325380314,1714793439573,-3376.0,0.00015,2]
[325380315,1714793439582,-1000.0,0.00015086,2]
[325380316,1714793439591,-797.0,0.000154,2]
[325380317,1714793439601,-1000.0,0.000154,2]
[325380318,1714793439612,-24245.25198779,0.00015504,2]
[325380319,1714793439622,-834.92,0.00016055,2]
[325380320,1714793439634,-365.48,0.00016376,2]
[325380321,1714793439644,-1000.0,0.00016594,2]
[325380322,1714793439653,-288696.20623415,0.00017,2]
[325380323,1714793439662,-152.0,0.0001769,3]
[325380324,1714793439671,-4000.0,0.00017808,2]
[325380325,1714793439681,-365.48,0.00017865,2]
[325380326,1714793439690,-172.59,0.00017925,2]
[325380327,1714793439700,-821.74174215,0.00017934,2]
[325380328,1714793439710,-450.0,0.00018,3]
[325380329,1714793439719,-3000.0,0.00018,2]
[325380330,1714793439729,-1000.0,0.00018103,2]
[325380331,1714793439738,-24245.25198779,0.00018108,2]
[325380332,1714793439747,-161.43190835,0.00018214,2]
[325380333,1714793439757,-500.0,0.00018642,2]
[325380334,1714793439766,-500.0,0.00018651,2]
[325380335,1714793439776,-500.0,0.00018659,2]
[325380336,1714793439786,-500.0,0.00018668,2]
[325380337,1714793439795,-500.0,0.00018668,2]
[325380338,1714793439804,-500.0,0.00018668,2]
[325380339,1714793439814,-500.0,0.00018668,2]
[325380340,1714793439824,-500.0,0.00018677,2]
[325380341,1714793439834,-500.0,0.00018677,2]
[325380342,1714793439845,-500.0,0.00018677,2]
[325380343,1714793439856,-500.0,0.00018677,2]
[325380344,1714793439866,-500.0,0.00018677,2]
[325380345,1714793439877,-160.0,0.00018686,2]
[325380346,1714793439888,-500.0,0.00018686,2]
[325380347,1714793439897,-500.0,0.00018686,2]
[325380348,1714793439907,-500.0,0.00018686,2]
[325380349,1714793439916,-500.0,0.00018686,2]
[325380350,1714793439926,-500.0,0.00018686,2]
[325380351,1714793439935,-498.53259602,0.00018695,2]
[325380352,1714793439945,-160.0,0.00018695,2]
[325380353,1714793439954,-472.07378453,0.00018695,2]
[325380354,1714793439964,-500.0,0.00018695,2]
[325380355,1714793439973,-160.0,0.00018695,2]
[325380356,1714793439982,-500.0,0.00018695,2]
[325380357,1714793439992,-500.0,0.00018695,2]
[325380358,1714793440001,-500.0,0.00018695,2]
[325380359,1714793440012,-500.0,0.00018695,2]
[325380360,1714793440021,-206.053,0.00018695,2]
[325380361,1714793440031,-523.937,0.00018695,2]
[325380362,1714793440040,-1234.723,0.00018695,2]
[325380363,1714793440049,-516.785,0.00018695,2]
[325380364,1714793440058,-152.0,0.00018745,4]
[325380365,1714793440067,-394.77,0.00019,2]
[325380366,1714793440076,-500.0,0.00019,2]
[325380367,1714793440085,-500.0,0.00019,2]
[325380368,1714793440095,-516.0,0.00019,2]
[325380369,1714793440105,-500.0,0.00019,2]
[325380370,1714793440114,-500.0,0.00019,2]
[325380371,1714793440133,-500.0,0.00019,2]
[325380372,1714793440145,-500.0,0.00019,2]
[325380373,1714793440155,-509.22,0.00019,2]
[325380374,1714793440165,-1747.9,0.00019178,2]
[325380375,1714793440174,-168.93,0.000192,2]
[325380376,1714793440184,-169.42,0.000192,2]
[325380377,1714793440194,-157.51,0.000192,2]
[325380378,1714793440203,-868.69025251,0.000195,2]
[325380379,1714793440213,-150.5,0.00019665,15]
[325380380,1714793440223,-150.5,0.00019675,15]
[325380381,1714793440233,-150.5,0.00019685,15]
[325380382,1714793440243,-150.5,0.00019695,15]
[325380383,1714793440253,-150.5,0.00019705,15]
[325380384,1714793440262,-150.5,0.00019715,15]
[325380385,1714793440272,-152.0,0.000198,5]
[325380386,1714793440282,-155.88899401,0.000198,5]
[325380387,1714793440292,-165.67893068,0.000199,2]
[325380388,1714793440301,-407.62071476,0.0002,2]
[325380389,1714793440311,-269.58026897,0.0002,2]
[325380390,1714793440321,-860.33884772,0.0002,2]
[325380391,1714793440331,-1768.70416813,0.0002,2]
[325380392,1714793440344,-155.0,0.0002,2]
[325380393,1714793440353,-5174.91787188,0.0002,2]
[325380394,1714793440363,-1259.16438446,0.0002,2]
[325380395,1714793440373,-6226.02936575,0.0002,2]
[325380396,1714793440384,-342.0,0.0002,2]
[325380397,1714793440394,-72040.2668356,0.0002,2]
[325380398,1714793440404,-500.0,0.0002,3]
[325380399,1714793440415,-2576.51651022,0.00020012,2]
[325380400,1714793440424,-1200.0,0.00020429,2]
[325380401,1714793440435,-24245.25198779,0.00020712,2]
[325380402,1714793440445,-155.0,0.000209,2]
[325380403,1714793440456,-151.89,0.00021644,2]
[325380404,1714793440465,-232.32,0.00021644,2]
[325380405,1714793440475,-206.91,0.00021644,2]
[325380406,1714793440485,-13967.79,0.00021757,2]
[325380407,1714793440495,-6757.61638509,0.000219,2]
[325380408,1714793440505,-2000.0,0.00021918,2]
[325380410,1714793440514,-250.0,0.00021918,2]
[325380412,1714793440524,-550.0,0.00022,3]
[325380413,1714793440534,-161.300305,0.00022,3]
[325380414,1714793440543,-2100.0,0.00022076,2]
[325380415,1714793440553,-169.42,0.000222,2]
[325380416,1714793440563,-157.51,0.000222,2]
[325380417,1714793440573,-150.0,0.000225,3]
[325380418,1714793440582,-3000.0,0.00023,2]
[325380419,1714793440592,-150.0,0.00023,3]
[325380420,1714793440601,-24245.25198779,0.00023316,2]
[325380421,1714793440611,-2000.21639391,0.000234,2]
[325380422,1714793440621,-150.0,0.000235,3]
[325380423,1714793440631,-161.43190835,0.00023528,2]
[325380424,1714793440641,-600.0,0.00024,3]
[325380425,1714793440650,-150.0,0.00024,4]
[325380426,1714793440660,-161.34,0.00024329,15]
[325380427,1714793440669,-150.0,0.000245,4]
[325380428,1714793440679,-1037.80709398,0.00024606,2]
[325380429,1714793440688,-1018.75589147,0.00024606,2]
[325380430,1714793440699,-888.0,0.00024657,2]
[325380431,1714793440708,-308.53,0.00024658,2]
[325380432,1714793440718,-261.93,0.00024658,2]
[325380433,1714793440728,-167.813,0.00024857,4]
[325380434,1714793440738,-167.814,0.00024857,4]
[325380435,1714793440748,-167.814,0.00024857,4]
[325380436,1714793440758,-167.814,0.00024857,4]
[325380437,1714793440768,-167.814,0.00024857,4]
[325380438,1714793440778,-2607.3114918,0.00025,2]
[325380439,1714793440788,-155.0,0.00025,2]
[325380440,1714793440797,-7125.7897434,0.00025,2]
[325380441,1714793440807,-1000.0,0.00025,15]
[325380442,1714793440817,-653.0,0.00025,2]
[325380443,1714793440827,-5000.0,0.00025,2]
[325380444,1714793440837,-359.00858816,0.00025,2]
[325380445,1714793440847,-150.0,0.00025,4]
[325380446,1714793440857,-167.62462793,0.00025108,2]
[325380447,1714793440867,-155.0,0.00025108,2]
[325380448,1714793440877,-14365.59906223,0.00025108,7]
[325380449,1714793440887,-2213.05089066,0.00025108,2]
[325380450,1714793440896,-716.17723846,0.00025178,2]
[325380451,1714793440907,-29314.0,0.00025716,2]
[325380452,1714793440916,-24245.25198779,0.0002592,2]
[325380453,1714793440926,-151.50478802,0.00025941,2]
[325380454,1714793440935,-650.0,0.00026,3]
[325380455,1714793440945,-974.60782133,0.00026027,4]
[325380456,1714793440956,-1533.23363311,0.000264,120]
[325380457,1714793440966,-160.01396255,0.000264,2]
[325380458,1714793440976,-2093.22464374,0.000264,2]
[325380459,1714793440986,-150.0,0.00026941,2]
[325380460,1714793440996,-173.050411,0.00027348,10]
[325380461,1714793441005,-301.50650281,0.00027397,2]
[325380462,1714793441015,-3920.0,0.00027397,2]
[325380463,1714793441026,-150.45,0.00027397,2]
[325380464,1714793441035,-1000.0,0.00027397,30]
[325380465,1714793441045,-959.83,0.00027397,10]
[325380466,1714793441055,-799.86,0.00027397,10]
[325380467,1714793441065,-153.69,0.00027489,2]
[325380468,1714793441075,-44557.65962891,0.00027499,2]
[325380469,1714793441085,-232.32,0.00027714,2]
[325380470,1714793441094,-206.91,0.00027714,2]
[325380471,1714793441106,-206.91513876,0.0002781,3]
[325380472,1714793441116,-150.0,0.00027863,4]
[325380473,1714793441126,-150.0,0.00027941,2]
[325380474,1714793441136,-400.62615796,0.0002797,2]
[325380475,1714793441146,-1224.55602433,0.00027976,2]
[325380476,1714793441156,-220.0701607,0.00027976,2]
[325380477,1714793441166,-626.26256473,0.00027976,2]
[325380478,1714793441175,-155.0,0.00027976,2]
[325380479,1714793441185,-471.19309113,0.00027976,2]
[325380480,1714793441195,-155.0,0.00027976,2]
[325380481,1714793441204,-460.73554938,0.00027976,7]
[325380482,1714793441214,-190.87637544,0.00027976,2]
[325380483,1714793441224,-368.89683598,0.00027976,2]
[325380484,1714793441234,-1739.47133011,0.00027976,2]
[325380485,1714793441244,-193.70036931,0.00027976,2]
[325380486,1714793441254,-431.93900284,0.00027976,2]
[325380487,1714793441263,-17686.11973703,0.00027977,2]
[325380488,1714793441273,-2355.48159593,0.00027977,2]
[325380489,1714793441283,-795.30605235,0.00027977,2]
[325380490,1714793441293,-151.0,0.00027977,7]
[325380491,1714793441303,-700.0,0.00028,3]
[325380492,1714793441313,-3000.0,0.00028,2]
[325380493,1714793441324,-151.0,0.00028,7]
[325380494,1714793441335,-151.0,0.00028,7]
[325380495,1714793441348,-985.65007,0.00028,7]
[325380496,1714793441359,-985.65007,0.00028,7]
[325380497,1714793441368,-151.0,0.00028,7]
[325380498,1714793441379,-151.0,0.00028,7]
[325380499,1714793441388,-150.0,0.00028035,7]
[325380500,1714793441398,-150.0,0.00028207,7]
[325380501,1714793441408,-150.0,0.00028379,7]
[325380502,1714793441417,-24245.25198779,0.00028523,2]
[325380503,1714793441430,-160.243981,0.00028524,7]
[325380504,1714793441440,-160.243981,0.00028524,7]
[325380505,1714793441450,-150.0,0.00028551,7]
[325380506,1714793441459,-150.0,0.00028723,7]
[325380507,1714793441469,-161.43190835,0.00028842,2]
[325380508,1714793441479,-150.0,0.00028895,7]
[325380509,1714793441488,-150.5,0.0002894,15]
[325380510,1714793441498,-242.82,0.0002894,15]
[325380511,1714793441507,-150.0,0.00028941,2]
[325380512,1714793441517,-207975.16258589,0.00028942,5]
[325380513,1714793441527,-150.5,0.0002895,15]
[325380514,1714793441536,-150.5,0.0002895,15]
[325380515,1714793441545,-150.5,0.0002896,15]
[325380516,1714793441555,-150.5,0.0002896,15]
[325380517,1714793441564,-400.0,0.0002897,2]
[325380518,1714793441573,-4339.16994082,0.00029,2]
[325380519,1714793441582,-150.0,0.00029067,7]
[325380520,1714793441592,-150.0,0.00029239,7]
[325380521,1714793441602,-150.0,0.00029411,7]
[325380522,1714793441612,-161.34,0.00029466,15]
[325380523,1714793441622,-155.0,0.000295,3]
[325380524,1714793441631,-150.0,0.00029583,7]
[325380525,1714793441641,-150.0,0.00029755,7]
[325380526,1714793441650,-150.0,0.00029927,7]
[325380527,1714793441659,-150.0,0.00029941,2]
[325380528,1714793441668,-155.49354231,0.0003,5]
[325380529,1714793441678,-2216.15922547,0.0003,3]
[325380530,1714793441687,-197.46690036,0.0003,12]
[325380531,1714793441697,-1321.24,0.0003,30]
[325380532,1714793441707,-654000.0,0.0003,2]
[325380533,1714793441717,-500.0,0.0003,2]
[325380534,1714793441726,-750.0,0.0003,3]
[325380535,1714793441736,-624.93579662,0.0003,4]
[325380536,1714793441746,-7660.10505,0.0003,3]
[325380537,1714793441756,-151.0,0.0003,7]
[325380538,1714793441765,-160.243981,0.0003,7]
[325380539,1714793441775,-160.243981,0.0003,7]
[325380540,1714793441785,-151.0,0.0003,7]
[325380541,1714793441794,-151.0,0.0003,7]
[325380542,1714793441803,-985.65007,0.0003,7]
[325380543,1714793441813,-985.65007,0.0003,7]
[325380544,1714793441823,-151.0,0.0003,7]
[325380545,1714793441832,-151.0,0.0003,7]
[325380546,1714793441842,-150.0,0.00030099,7]
[325380547,1714793441851,-150.0,0.00030271,7]